lending/lending_fUSD_20250218
["ID","MTS","AMOUNT","RATE_DAILY","PERIOD"]
[353536639,1739903448438,-500.0,0.00019979,3]
[353536641,1739903448448,-500.0,0.00019979,3]
[353536643,1739903448458,-500.0,0.00019979,3]
[353536645,1739903448468,-500.0,0.00019979,3]
[353536647,1739903448477,-500.0,0.00019979,3]
[353536649,1739903448487,-502.89443417,0.00019979,3]
[353536651,1739903448496,-500.0,0.00019979,3]
[353536653,1739903448506,-500.0,0.00019979,3]
[353536654,1739903448515,-500.0,0.00019979,3]
[353536656,1739903448525,-500.0,0.00019979,3]
[353536658,1739903448534,-500.0,0.00019979,3]
[353536660,1739903448545,-500.0,0.00019979,3]
[353536662,1739903448555,-500.0,0.00019979,3]
[353536663,1739903448566,-500.0,0.00019979,3]
[353536664,1739903448576,-500.0,0.00019979,3]
[353536665,1739903448585,-241.84799949,0.00019979,3]
[353536666,1739903448595,-500.0,0.00019979,3]
[353536667,1739903448606,-500.0,0.00019979,3]
[353536668,1739903448616,-500.0,0.00019979,3]
[353536670,1739903448626,-500.0,0.00019979,3]
[353536672,1739903448636,-500.0,0.00019979,3]
[353536674,1739903448645,-500.0,0.00019979,3]
[353536676,1739903448655,-500.0,0.00019979,3]
[353536678,1739903448664,-634.36854445,0.00019979,3]
[353536680,1739903448674,-500.0,0.00019979,3]
[353536682,1739903448683,-500.0,0.00019979,3]
[353536684,1739903448693,-500.0,0.00019979,3]
[353536686,1739903448702,-500.0,0.00019979,3]
[353536687,1739903448711,-321.80905337,0.00019979,3]
[353536689,1739903448721,-500.0,0.00019979,3]
[353536692,1739903448732,-500.0,0.00019979,3]
[353536694,1739903448742,-500.0,0.00019979,3]
[353536696,1739903448752,-500.0,0.00019979,3]
[353536698,1739903448762,-500.0,0.00019979,3]
[353536700,1739903448772,-500.0,0.00019979,3]
[353536702,1739903448782,-502.29201285,0.00019979,3]
[353536704,1739903448792,-500.0,0.00019979,3]
[353536706,1739903448802,-502.38169588,0.00019979,3]
[353536708,1739903448812,-500.0,0.00019979,3]
[353536710,1739903448821,-500.0,0.00019979,3]
[353536712,1739903448831,-500.0,0.00019979,3]
[353536714,1739903448840,-501.13995368,0.00019979,3]
[353536716,1739903448850,-500.0,0.00019979,3]
[353536718,1739903448860,-500.0,0.00019979,3]
[353536720,1739903448869,-500.0,0.00019979,3]
[353536722,1739903448879,-500.0,0.00019979,3]
[353536724,1739903448888,-648.87,0.00019979,3]
[353536726,1739903448898,-500.0,0.00019979,3]
[353536728,1739903448908,-500.0,0.00019979,3]
[353536730,1739903448918,-500.0,0.00019979,3]
[353536732,1739903448928,-500.0,0.00019979,3]
[353536734,1739903448938,-500.0,0.00019979,3]
[353536736,1739903448949,-500.0,0.00019979,3]
[353536738,1739903448959,-500.0,0.00019979,3]
[353536740,1739903448970,-500.0,0.00019979,3]
[353536742,1739903448980,-176.07904214,0.00019979,3]
[353536744,1739903448991,-500.0,0.00019979,3]
[353536746,1739903449004,-500.0,0.00019979,3]
[353536748,1739903449016,-500.0,0.00019979,3]
[353536751,1739903449027,-500.0,0.00019979,3]
[353536753,1739903449038,-500.0,0.00019979,3]
[353536755,1739903449052,-500.0,0.00019979,3]
[353536757,1739903449062,-502.45588604,0.00019979,3]
[353536759,1739903449073,-500.0,0.00019979,3]
[353536761,1739903449083,-166.3632238,0.00019979,3]
[353536763,1739903449094,-500.0,0.00019979,3]
[353536765,1739903449104,-500.0,0.00019979,3]
[353536767,1739903449114,-500.0,0.00019979,3]
[353536769,1739903449124,-1842.25,0.00019979,3]
[353536771,1739903449134,-500.0,0.00019979,3]
[353536773,1739903449144,-500.0,0.00019979,3]
[353536775,1739903449154,-500.0,0.00019979,3]
[353536777,1739903449164,-500.0,0.00019979,3]
[353536779,1739903449175,-154.64664499,0.00019979,3]
[353536781,1739903449184,-500.0,0.00019979,3]
[353536783,1739903449194,-500.0,0.00019979,3]
[353536784,1739903449205,-500.0,0.00019979,3]
[353536787,1739903449216,-500.0,0.00019979,3]
[353536789,1739903449226,-500.0,0.00019979,3]
[353536791,1739903449237,-500.0,0.00019979,3]
[353536793,1739903449247,-529.92,0.00019979,3]
[353536794,1739903449258,-523.62,0.00019979,3]
[353536796,1739903449268,-260.71,0.00019979,3]
[353536799,1739903449279,-500.0,0.00019979,3]
[353536800,1739903449289,-530.88,0.00019979,3]
[353536803,1739903449302,-500.0,0.00019979,3]
[353536804,1739903449313,-608.63,0.00019979,3]
[353536806,1739903449324,-573.57,0.00019979,3]
[353536809,1739903449335,-281.37,0.00019979,3]
[353536811,1739903449346,-500.0,0.00019979,3]
[353536813,1739903449359,-500.0,0.00019979,3]
[353536815,1739903449369,-500.0,0.00019979,3]
[353536817,1739903449380,-355.7033996,0.00019979,3]
[353536819,1739903449391,-500.0,0.00019979,3]
[353536820,1739903449401,-500.0,0.00019979,3]
[353536823,1739903449413,-500.0,0.00019979,3]
[353536825,1739903449423,-500.0,0.00019979,3]
[353536827,1739903449435,-428.01530829,0.00019979,3]
[353536829,1739903449448,-500.0,0.00019979,3]
[353536831,1739903449458,-500.0,0.00019979,3]
[353536833,1739903449468,-500.0,0.00019979,3]
[353536835,1739903449478,-500.0,0.00019979,3]
[353536837,1739903449488,-500.0,0.00019979,3]
[353536839,1739903449497,-500.0,0.00019979,3]
[353536841,1739903449507,-500.0,0.00019979,3]
[353536843,1739903449518,-500.0,0.00019979,3]
[353536845,1739903449527,-1015.62805601,0.00019979,2]
[353536847,1739903449537,-2000.0,0.0001998,3]
[353536849,1739903449548,-150.0,0.0001998,2]
[353536851,1739903449558,-500.0,0.00019988,3]
[353536853,1739903449568,-500.0,0.00019988,3]
[353536855,1739903449579,-500.0,0.00019988,3]
[353536857,1739903449589,-500.0,0.00019988,3]
[353536859,1739903449599,-500.0,0.00019988,3]
[353536860,1739903449610,-500.0,0.00019988,3]
[353536863,1739903449620,-500.0,0.00019988,3]
[353536865,1739903449631,-1227.0,0.00019988,2]
[353536866,1739903449641,-516.04681432,0.00019989,3]
[353536868,1739903449651,-500.0,0.00019989,3]
[353536870,1739903449661,-500.0,0.00019989,3]
[353536873,1739903449672,-500.0,0.00019989,3]
[353536874,1739903449681,-500.0,0.00019989,3]
[353536876,1739903449691,-500.0,0.00019989,3]
[353536879,1739903449701,-500.0,0.00019989,3]
[353536881,1739903449711,-500.0,0.00019989,3]
[353536883,1739903449720,-500.0,0.00019989,3]
[353536885,1739903449729,-500.0,0.00019989,3]
[353536887,1739903449738,-500.0,0.00019989,3]
[353536889,1739903449747,-508.18065489,0.00019989,3]
[353536891,1739903449759,-500.0,0.00019989,3]
[353536893,1739903449769,-500.0,0.00019989,3]
[353536895,1739903449779,-500.0,0.00019989,3]
[353536897,1739903449788,-500.0,0.00019989,2]
[353536899,1739903449799,-500.0,0.00019989,3]
[353536901,1739903449809,-500.0,0.00019989,3]
[353536903,1739903449819,-500.0,0.00019989,3]
[353536905,1739903449829,-500.0,0.00019989,3]
[353536906,1739903449838,-500.0,0.00019989,3]
[353536907,1739903449847,-500.0,0.00019989,3]
[353536908,1739903449856,-500.0,0.00019989,3]
[353536909,1739903449866,-500.0,0.00019989,3]
[353536923,1739903450032,-500.86250277,0.00019989,3]
[353536925,1739903450043,-500.0,0.00019989,3]
[353536927,1739903450053,-500.0,0.00019989,3]
[353536929,1739903450062,-500.0,0.00019989,3]
[353536931,1739903450073,-500.0,0.00019989,3]
[353536933,1739903450083,-500.0,0.00019989,3]
[353536935,1739903450093,-500.0,0.00019989,3]
[353536937,1739903450103,-500.0,0.00019989,3]
[353536939,1739903450114,-500.0,0.00019989,3]
[353536941,1739903450124,-500.0,0.00019989,3]
[353536943,1739903450135,-500.80875895,0.00019989,3]
[353536945,1739903450145,-500.0,0.00019989,3]
[353536947,1739903450155,-505.99329737,0.00019989,3]
[353536949,1739903450167,-507.30938301,0.00019989,3]
[353536951,1739903450176,-501.95797251,0.00019989,3]
[353536953,1739903450187,-508.31733396,0.00019989,3]
[353536955,1739903450198,-500.0,0.00019989,3]
[353536957,1739903450208,-500.0,0.00019989,3]
[353536959,1739903450218,-500.0,0.00019989,3]
[353536961,1739903450228,-498.20171991,0.00019989,3]
[353536963,1739903450237,-500.0,0.00019989,3]
[353536965,1739903450247,-500.0,0.00019989,3]
[353536967,1739903450256,-501.01036154,0.00019989,3]
[353536969,1739903450266,-500.0,0.00019989,3]
[353536971,1739903450277,-500.0,0.00019989,3]
[353536973,1739903450287,-500.0,0.00019989,3]
[353536975,1739903450297,-324.62156941,0.00019989,3]
[353536977,1739903450306,-287.30715022,0.00019989,3]
[353536979,1739903450316,-256.62893501,0.00019989,3]
[353536981,1739903450326,-500.0,0.00019989,3]
[353536983,1739903450335,-500.0,0.00019989,3]
[353536985,1739903450346,-500.0,0.00019989,3]
[353536987,1739903450357,-500.0,0.00019989,3]
[353536989,1739903450367,-385.61,0.00019989,3]
[353536991,1739903450376,-160.26,0.00019989,3]
[353536993,1739903450385,-500.0,0.00019989,3]
[353536995,1739903450395,-436.41,0.00019989,3]
[353536997,1739903450405,-162.07,0.00019989,3]
[353536999,1739903450413,-192.16140064,0.00019989,3]
[353537001,1739903450423,-170.33,0.00019989,3]
[353537003,1739903450433,-500.0,0.00019989,3]
[353537005,1739903450442,-500.0,0.00019989,3]
[353537007,1739903450451,-500.0,0.00019989,3]
[353537008,1739903450460,-500.0,0.00019989,3]
[353537010,1739903450470,-500.0,0.00019989,3]
[353537012,1739903450479,-500.0,0.00019989,3]
[353537014,1739903450489,-636.44,0.00019989,3]
[353537017,1739903450498,-365.31,0.00019989,3]
[353537019,1739903450508,-509.81486679,0.00019989,3]
[353537021,1739903450517,-500.0,0.00019989,3]
[353537023,1739903450527,-511.76850396,0.00019989,3]
[353537025,1739903450537,-500.0,0.00019989,3]
[353537027,1739903450548,-504.95704444,0.00019989,3]
[353537029,1739903450557,-184.43920862,0.00019989,3]
[353537031,1739903450567,-500.0,0.00019989,3]
[353537032,1739903450576,-500.0,0.00019989,3]
[353537035,1739903450586,-500.0,0.00019989,3]
[353537037,1739903450595,-500.0,0.00019989,3]
[353537039,1739903450604,-505.20903879,0.00019989,3]
[353537041,1739903450614,-500.0,0.00019989,3]
[353537042,1739903450623,-384.5,0.00019989,3]
[353537045,1739903450633,-500.0,0.00019989,3]
[353537046,1739903450642,-500.0,0.00019989,3]
[353537048,1739903450651,-500.0,0.00019989,3]
[353537050,1739903450660,-500.0,0.00019989,3]
[353537052,1739903450670,-581.18,0.00019989,3]
[353537054,1739903450679,-504.74248154,0.00019989,3]
[353537057,1739903450689,-500.0,0.00019989,3]
[353537059,1739903450698,-500.0,0.00019989,3]
[353537061,1739903450708,-368.65,0.00019989,3]
[353537063,1739903450717,-508.19562705,0.00019989,3]
[353537065,1739903450726,-503.0410419,0.00019989,3]
[353537067,1739903450735,-500.0,0.00019989,3]
[353537068,1739903450744,-500.0,0.00019989,3]
[353537071,1739903450753,-500.0,0.00019989,3]
[353537072,1739903450763,-500.0,0.00019989,3]
[353537074,1739903450771,-500.0,0.00019989,3]
[353537076,1739903450781,-509.4991507,0.00019989,3]
[353537078,1739903450790,-500.0,0.00019989,3]
[353537080,1739903450800,-500.0,0.00019989,3]
[353537082,1739903450809,-500.0,0.00019989,3]
[353537084,1739903450818,-500.0,0.00019989,3]
[353537086,1739903450827,-500.0,0.00019989,3]
[353537088,1739903450836,-500.0,0.00019989,3]
[353537090,1739903450846,-435.2,0.00019989,3]
[353537092,1739903450855,-500.0,0.00019989,3]
[353537094,1739903450865,-1842.25,0.00019989,3]
[353537096,1739903450874,-1842.25,0.00019989,3]
[353537098,1739903450883,-500.0,0.00019989,3]
[353537100,1739903450893,-500.0,0.00019989,3]
[353537102,1739903450902,-220.68,0.00019989,3]
[353537104,1739903450912,-500.0,0.00019989,3]
[353537106,1739903450922,-500.0,0.00019989,3]
[353537108,1739903450931,-504.8854892,0.00019989,3]
[353537110,1739903450940,-500.0,0.00019989,3]
[353537112,1739903450950,-500.0,0.00019989,3]
[353537114,1739903450960,-500.0,0.00019989,3]
[353537116,1739903450970,-502.84179382,0.00019989,3]
[353537118,1739903450979,-500.0,0.00019989,3]
[353537119,1739903450989,-226.26,0.00019989,3]
[353537120,1739903450998,-500.0,0.00019989,3]
[353537121,1739903451007,-500.0,0.00019989,3]
[353537122,1739903451017,-500.0,0.00019989,3]
[353537123,1739903451026,-500.0,0.00019989,3]
[353537125,1739903451036,-490.09,0.00019989,3]
[353537126,1739903451047,-520.93665769,0.00019989,3]
[353537128,1739903451056,-505.774024,0.00019989,3]
[353537131,1739903451066,-366.64896548,0.00019989,3]
[353537132,1739903451075,-500.0,0.00019989,3]
[353537134,1739903451085,-500.0,0.00019989,3]
[353537136,1739903451095,-500.0,0.00019989,3]
[353537138,1739903451104,-500.0,0.00019989,3]
[353537140,1739903451114,-500.0,0.00019989,3]
[353537142,1739903451123,-500.0,0.00019989,3]
[353537145,1739903451133,-500.0,0.00019989,3]
[353537147,1739903451143,-195.54,0.00019989,3]
[353537149,1739903451152,-500.0,0.00019989,3]
[353537151,1739903451163,-500.0,0.00019989,3]
[353537153,1739903451172,-500.0,0.00019989,3]
[353537155,1739903451182,-500.0,0.00019989,3]
[353537157,1739903451191,-500.0,0.00019989,3]
[353537159,1739903451201,-500.0,0.00019989,3]
[353537161,1739903451210,-500.0,0.00019989,3]
[353537163,1739903451219,-500.0,0.00019989,3]
[353537165,1739903451229,-500.0,0.00019989,3]
[353537167,1739903451238,-500.0,0.00019989,3]
[353537169,1739903451247,-500.0,0.00019989,3]
[353537171,1739903451257,-500.0,0.00019989,3]
[353537173,1739903451266,-500.0,0.00019989,3]
[353537175,1739903451276,-513.44129984,0.00019989,3]
[353537177,1739903451285,-500.0,0.00019989,3]
[353537179,1739903451296,-500.0,0.00019989,3]
[353537181,1739903451305,-392.29686426,0.00019989,3]
[353537183,1739903451314,-500.0,0.00019989,3]
[353537185,1739903451323,-500.0,0.00019989,3]
[353537187,1739903451332,-1000.0,0.00019989,2]
[353537188,1739903451341,-1000.0,0.00019989,2]
[353537191,1739903451351,-199.65395295,0.00019989,2]
[353537193,1739903451364,-500.0,0.00019989,3]
[353537194,1739903451374,-500.0,0.00019989,3]
[353537196,1739903451383,-500.0,0.00019989,3]
[353537198,1739903451394,-500.0,0.00019989,3]
[353537201,1739903451404,-500.0,0.00019989,3]
[353537203,1739903451414,-500.0,0.00019989,3]
[353537205,1739903451423,-500.0,0.00019989,3]
[353537207,1739903451432,-500.0,0.00019989,3]
[353537209,1739903451443,-500.0,0.00019989,3]
[353537211,1739903451452,-500.0,0.00019989,3]
[353537213,1739903451462,-500.0,0.00019989,3]
[353537215,1739903451471,-500.0,0.00019989,3]
[353537217,1739903451481,-500.0,0.00019989,3]
[353537219,1739903451490,-500.0,0.00019989,3]
[353537221,1739903451499,-500.0,0.00019989,3]
[353537223,1739903451509,-500.0,0.00019989,3]
[353537225,1739903451518,-500.0,0.00019989,3]
[353537226,1739903451527,-504.76491382,0.00019989,3]
[353537228,1739903451538,-500.0,0.00019989,3]
[353537230,1739903451549,-500.0,0.00019989,3]
[353537231,1739903451559,-500.0,0.00019989,3]
[353537233,1739903451568,-500.0,0.00019989,3]
[353537235,1739903451577,-500.0,0.00019989,3]
[353537236,1739903451586,-500.0,0.00019989,3]
[353537238,1739903451596,-500.0,0.00019989,3]
[353537239,1739903451605,-500.0,0.00019989,3]
[353537241,1739903451614,-500.0,0.00019989,3]
[353537242,1739903451623,-500.0,0.00019989,3]
[353537244,1739903451632,-500.0,0.00019989,3]
[353537246,1739903451641,-500.0,0.00019989,3]
[353537247,1739903451651,-513.55343424,0.00019989,3]
[353537249,1739903451660,-500.0,0.00019989,3]
[353537250,1739903451669,-500.0,0.00019989,3]
[353537252,1739903451678,-500.0,0.00019989,3]
[353537254,1739903451687,-500.0,0.00019989,3]
[353537255,1739903451696,-511.33121521,0.00019989,3]
[353537257,1739903451706,-500.0,0.00019989,3]
[353537259,1739903451715,-500.0,0.00019989,3]
[353537260,1739903451725,-500.0,0.00019989,3]
[353537262,1739903451735,-502.61423243,0.00019989,3]
[353537263,1739903451746,-508.27232512,0.00019989,3]
[353537265,1739903451755,-500.0,0.00019989,3]
[353537267,1739903451765,-500.0,0.00019989,3]
[353537268,1739903451775,-500.0,0.00019989,3]
[353537270,1739903451785,-607.88,0.00019989,3]
[353537272,1739903451795,-500.0,0.00019989,3]
[353537273,1739903451805,-500.0,0.00019989,3]
[353537275,1739903451815,-500.0,0.00019989,3]
[353537277,1739903451825,-500.0,0.00019989,3]
[353537279,1739903451834,-500.0,0.00019989,3]
[353537280,1739903451845,-500.0,0.00019989,3]
[353537282,1739903451855,-500.0,0.00019989,3]
[353537284,1739903451864,-500.0,0.00019989,3]
[353537285,1739903451873,-510.84259508,0.00019989,3]
[353537287,1739903451883,-500.0,0.00019989,3]
[353537289,1739903451893,-500.0,0.00019989,3]
[353537291,1739903451902,-547.61,0.00019989,3]
[353537292,1739903451911,-500.0,0.00019989,3]
[353537294,1739903451921,-500.0,0.00019989,3]
[353537296,1739903451931,-500.0,0.00019989,3]
[353537297,1739903451940,-500.0,0.00019989,3]
[353537299,1739903451950,-500.0,0.00019989,3]
[353537301,1739903451960,-500.0,0.00019989,3]
[353537303,1739903451969,-500.0,0.00019989,3]
[353537304,1739903451979,-500.0,0.00019989,3]
[353537306,1739903451988,-500.0,0.00019989,3]
[353537308,1739903451998,-209.21,0.00019989,3]
[353537309,1739903452008,-204.0,0.0001999,2]
[353537311,1739903452017,-214.24579648,0.00019996,2]
[353537313,1739903452027,-500.0,0.00019998,3]
[353537315,1739903452036,-500.0,0.00019998,3]
[353537316,1739903452047,-1842.25,0.00019998,3]
[353537318,1739903452056,-172.54,0.00019998,3]
[353537320,1739903452066,-500.0,0.00019998,3]
[353537321,1739903452075,-500.0,0.00019998,3]
[353537323,1739903452084,-999.0,0.00019998,2]
[353537325,1739903452094,-645.74,0.00019999,3]
[353537326,1739903452103,-645.74,0.00019999,3]
[353537328,1739903452112,-645.74,0.00019999,3]
[353537330,1739903452121,-645.74,0.00019999,3]
[353537331,1739903452130,-645.74,0.00019999,3]
[353537333,1739903452139,-645.74,0.00019999,3]
[353537335,1739903452149,-645.74,0.00019999,3]
[353537336,1739903452159,-645.74,0.00019999,3]
[353537338,1739903452168,-645.74,0.00019999,3]
[353537340,1739903452178,-645.74,0.00019999,3]
[353537342,1739903452187,-645.74,0.00019999,3]
[353537343,1739903452196,-645.74,0.00019999,3]
[353537345,1739903452205,-645.74,0.00019999,3]
[353537347,1739903452215,-645.74,0.00019999,3]
[353537349,1739903452224,-645.74,0.00019999,3]
[353537351,1739903452233,-645.74,0.00019999,3]
[353537352,1739903452243,-645.74,0.00019999,3]
[353537353,1739903452253,-645.74,0.00019999,3]
[353537354,1739903452262,-645.74,0.00019999,3]
[353537355,1739903452272,-645.74,0.00019999,3]
[353537356,1739903452281,-645.86618106,0.00019999,3]
[353537357,1739903452291,-500.0,0.00019999,2]
[353537358,1739903452302,-500.0,0.00019999,3]
[353537359,1739903452311,-500.0,0.00019999,3]
[353537360,1739903452321,-500.0,0.00019999,3]
[353537361,1739903452331,-500.0,0.00019999,3]
[353537362,1739903452339,-167.26903612,0.00019999,3]
[353537364,1739903452349,-500.0,0.00019999,3]
[353537366,1739903452363,-500.0,0.00019999,3]
[353537368,1739903452372,-500.0,0.00019999,3]
[353537369,1739903452381,-500.0,0.00019999,3]
[353537370,1739903452390,-500.0,0.00019999,3]
[353537372,1739903452401,-500.0,0.00019999,3]
[353537373,1739903452410,-500.0,0.00019999,3]
[353537375,1739903452419,-500.0,0.00019999,3]
[353537377,1739903452429,-500.0,0.00019999,3]
[353537381,1739903452468,-500.0,0.00019999,3]
[353537382,1739903452477,-500.0,0.00019999,3]
[353537383,1739903452487,-500.0,0.00019999,3]
[353537384,1739903452496,-500.0,0.00019999,3]
[353537385,1739903452505,-624.07079056,0.00019999,3]
[353537386,1739903452515,-1842.25,0.00019999,3]
[353537387,1739903452524,-1842.25,0.00019999,3]
[353537388,1739903452533,-1842.25,0.00019999,3]
[353537389,1739903452542,-1842.25,0.00019999,3]
[353537390,1739903452552,-1842.25,0.00019999,3]
[353537391,1739903452561,-1842.25,0.00019999,3]
[353537392,1739903452571,-1842.25,0.00019999,3]
[353537393,1739903452580,-1842.25,0.00019999,3]
[353537394,1739903452589,-1842.25,0.00019999,3]
[353537395,1739903452598,-1842.25,0.00019999,3]
[353537396,1739903452607,-1842.25,0.00019999,3]
[353537397,1739903452616,-1842.25,0.00019999,3]
[353537398,1739903452625,-1842.25,0.00019999,3]
[353537399,1739903452635,-1842.25,0.00019999,3]
[353537400,1739903452644,-1842.25,0.00019999,3]
[353537401,1739903452654,-1842.25,0.00019999,3]
[353537402,1739903452663,-1842.25,0.00019999,3]
[353537403,1739903452673,-1842.25,0.00019999,3]
[353537404,1739903452682,-1842.37088216,0.00019999,3]
[353537406,1739903452692,-1167.3502391,0.00019999,2]
[353537408,1739903452701,-500.0,0.00019999,3]
[353537410,1739903452710,-500.0,0.00019999,3]
[353537412,1739903452720,-601.00388009,0.00019999,3]
[353537414,1739903452729,-500.0,0.00019999,3]
[353537416,1739903452738,-500.0,0.00019999,3]
[353537418,1739903452748,-500.0,0.00019999,3]
[353537420,1739903452756,-500.0,0.00019999,3]
[353537422,1739903452765,-500.0,0.00019999,3]
[353537424,1739903452774,-500.0,0.00019999,3]
[353537426,1739903452783,-500.0,0.00019999,3]
[353537428,1739903452794,-500.0,0.00019999,3]
[353537430,1739903452803,-530.16,0.00019999,3]
[353537432,1739903452813,-500.0,0.00019999,3]
[353537433,1739903452822,-411.9917593,0.00019999,3]
[353537435,1739903452832,-646.49,0.00019999,3]
[353537438,1739903452842,-1943291.77054273,0.0002,10]
[353537440,1739903452863,-7469.12308868,0.0002,10]
[353537441,1739903452874,-707.88465204,0.0002,10]
[353537442,1739903452885,-1087.23851416,0.0002,10]
[353537443,1739903452895,-1040.12194871,0.0002,10]
[353537444,1739903452911,-1452.0,0.0002,10]
[353537445,1739903452941,-733.29661672,0.0002,10]
[353537446,1739903475082,504.76409119,0.000205,120]
[353537447,1739903489794,1242.14495868,0.00020329,120]
[353537448,1739903697195,452.0,0.0002,120]
[353537449,1739903712034,1828.31837461,0.00019726,120]
[353537450,1739903864210,1906.53,0.00016712,120]
[353537451,1739903864548,1906.53,0.00016712,120]
[353537452,1739903864861,1906.53,0.00016712,120]
[353537453,1739903865453,1906.53,0.00016712,120]
[353537454,1739903865777,1906.53,0.00016712,120]
[353537455,1739903866256,1906.53,0.00016712,120]
[353537456,1739903866623,1906.53,0.00016712,120]
[353537457,1739903866892,1906.53,0.00016712,120]
[353537458,1739903867164,1906.53,0.00016712,120]
[353537459,1739903867514,1906.53,0.00016712,120]
[353537460,1739903867666,1906.53,0.00016712,120]
[353537461,1739903867938,1906.53,0.00016712,120]
[353537462,1739903868254,1906.53,0.00016712,120]
[353537463,1739903868514,1906.53,0.00016712,120]
[353537464,1739903868835,1906.53,0.00016712,120]
[353537465,1739903869132,1906.53,0.00016712,120]
[353537466,1739903869390,1906.53,0.00016712,120]
[353537467,1739903869682,1906.53,0.00016712,120]
[353537468,1739903869940,1906.53,0.00016712,120]
[353537469,1739903870193,1906.53,0.00016712,120]
[353537470,1739903870451,1906.53,0.00016712,120]
[353537471,1739903870852,1906.53,0.00016712,120]
[353537472,1739903871108,1906.53,0.00016712,120]
[353537473,1739903871368,1906.72994858,0.00016712,120]
[353537474,1739904271339,415.28189643,0.00020329,120]
[353537483,1739904545816,153.77,8.767e-05,2]
[353537543,1739904631860,-550.0,0.0001,2]
[353537544,1739904631870,-200.0,0.00010008,2]
[353537545,1739904631880,-150.0,0.00011,2]
[353537546,1739904631890,-150.0,0.00011,2]
[353537547,1739904631899,-200.0,0.00011,2]
[353537548,1739904631909,-200.0,0.00011138,2]
[353537549,1739904631918,-151.0,0.00013699,2]
[353537550,1739904631928,-153.61,0.00013699,2]
[353537551,1739904631937,-1011.43118,0.000138,2]
[353537552,1739904631946,-250.0,0.00015,2]
[353537553,1739904631956,-166.1,0.00015068,2]
[353537554,1739904631965,-165.82882,0.000153,2]
[353537555,1739904631976,-5163.90525654,0.000153,2]
[353537556,1739904631987,-108.26592346,0.000153,2]
[353537557,1739904631996,-300.0,0.00015499,2]
[353537558,1739904632007,-1011.43118,0.000155,2]
[353537559,1739904632017,-566.22,0.00015762,2]
[353537560,1739904632027,-965.35,0.00015762,2]
[353537561,1739904632036,-2744.23289654,0.0001579,2]
[353537562,1739904632049,-940.94,0.0001579,2]
[353537563,1739904632087,-345.90490653,0.0001579,2]
[353537564,1739904632100,-996.94,0.0001579,2]
[353537565,1739904632124,-1361.11506792,0.0001579,2]
[353537566,1739904632137,-320.04826288,0.0001579,2]
[353537567,1739904632148,-283.7,0.0001579,2]
[353537568,1739904632234,-4050.93530523,0.0001579,2]
[353537569,1739904632246,-543.86946,0.0001579,2]
[353537597,1739904637837,-12312.3141009,0.0001579,2]
[353537598,1739904637847,-153.77,0.0001589,2]
[353537599,1739904637857,-235.06,0.00016048,2]
[353537600,1739904637868,-182.71,0.00016437,2]
[353537601,1739904637878,-150.07,0.00016438,2]